[Event "*** SCC Grand Prix: Titled Tuesday Blitz"]
[Site "Chess.com"]
[Date "2020.07.21"]
[Round "5"]
[White "GOGIEFF"]
[Black "Harsha_Bharathakoti"]
[Result "1-0"]
[WhiteElo "2903"]
[BlackElo "2759"]
[TimeControl "180+1"]
[EndTime "10:55:26 PDT"]
[Termination "GOGIEFF won on time"]

1. d4 {[%clk 0:03:00.9]} 1... Nf6 {[%clk 0:02:58.7]} 2. c4 {[%clk 0:03:00.9]}
2... g6 {[%clk 0:02:55.5]} 3. Nc3 {[%clk 0:03:00.1]} 3... d5 {[%clk 0:02:56.1]}
4. cxd5 {[%clk 0:02:59.5]} 4... Nxd5 {[%clk 0:02:57]} 5. e4 {[%clk 0:02:59.8]}
5... Nxc3 {[%clk 0:02:57.5]} 6. bxc3 {[%clk 0:03:00.7]} 6... Bg7 {[%clk
0:02:58.2]} 7. Bc4 {[%clk 0:03:00.8]} 7... O-O {[%clk 0:02:56.8]} 8. Ne2 {[%clk
0:03:01.3]} 8... c5 {[%clk 0:02:57.5]} 9. O-O {[%clk 0:03:00.1]} 9... Nc6 {[%clk
0:02:57.8]} 10. Be3 {[%clk 0:03:00.1]} 10... b6 {[%clk 0:02:58.3]} 11. h4 {[%clk
0:02:59]} 11... e6 {[%clk 0:02:58.3]} 12. h5 {[%clk 0:02:57.1]} 12... Qh4 {[%clk
0:02:49.7]} 13. hxg6 {[%clk 0:02:55.6]} 13... hxg6 {[%clk 0:02:50.6]} 14. f3
{[%clk 0:02:48.3]} 14... cxd4 {[%clk 0:02:25.8]} 15. cxd4 {[%clk 0:02:45.7]}
15... Rd8 {[%clk 0:02:26.3]} 16. Qd2 {[%clk 0:02:30.1]} 16... Be5 {[%clk
0:02:25.6]} 17. f4 {[%clk 0:02:18.6]} 17... Bg7 {[%clk 0:02:25.1]} 18. Rac1
{[%clk 0:01:47.4]} 18... Bb7 {[%clk 0:02:09.6]} 19. Rf3 {[%clk 0:01:26.2]} 19...
Rac8 {[%clk 0:01:18.4]} 20. Rh3 {[%clk 0:01:17.4]} 20... Qe7 {[%clk 0:01:05.8]}
21. e5 {[%clk 0:01:14.7]} 21... Qd7 {[%clk 0:00:50.6]} 22. f5 {[%clk 0:01:03.3]}
22... exf5 {[%clk 0:00:20.8]} 23. Qe1 {[%clk 0:01:03.4]} 23... Nxe5 {[%clk
0:00:19.7]} 24. dxe5 {[%clk 0:00:58.5]} 24... Rxc4 {[%clk 0:00:20]} 25. Rxc4
{[%clk 0:00:55.7]} 25... Qd5 {[%clk 0:00:20.1]} 26. Nf4 {[%clk 0:00:51.8]} 26...
Qxc4 {[%clk 0:00:20.2]} 27. e6 {[%clk 0:00:38.4]} 27... Qe4 {[%clk 0:00:15.4]}
28. Qg3 {[%clk 0:00:33.3]} 28... Rd1+ {[%clk 0:00:09.9]} 29. Kh2 {[%clk
0:00:33.4]} 29... Rd6 {[%clk 0:00:09]} 30. Qh4 {[%clk 0:00:23.4]} 30... fxe6
{[%clk 0:00:05.8]} 31. Qe7 {[%clk 0:00:19.8]} 31... Be5 {[%clk 0:00:01.7]} 32.
Qe8+ {[%clk 0:00:18.2]} 32... Kg7 {[%clk 0:00:02.2]} 33. Qxg6+ {[%clk
0:00:16.1]} 33... Kf8 {[%clk 0:00:02]} 34. Qg5 {[%clk 0:00:14.6]} 34... Ke8
{[%clk 0:00:01.2]} 35. Rh7 {[%clk 0:00:12.3]} 1-0

[Event "*** SCC Grand Prix: Titled Tuesday Blitz"]
[Site "Chess.com"]
[Date "2020.07.21"]
[Round "5"]
[White "ketster"]
[Black "JesseKraai"]
[Result "0-1"]
[WhiteElo "2367"]
[BlackElo "2520"]
[TimeControl "180+1"]
[EndTime "10:55:26 PDT"]
[Termination "JesseKraai won on time"]

1. d4 {[%clk 0:03:00.9]} 1... d6 {[%clk 0:02:59.4]} 2. Nf3 {[%clk 0:03:00.1]}
2... Nf6 {[%clk 0:02:59.1]} 3. c4 {[%clk 0:02:59.8]} 3... Nbd7 {[%clk
0:02:58.7]} 4. Nc3 {[%clk 0:02:59.4]} 4... e5 {[%clk 0:02:59]} 5. e4 {[%clk
0:02:58.3]} 5... Be7 {[%clk 0:02:59]} 6. g3 {[%clk 0:02:57.8]} 6... O-O {[%clk
0:02:59]} 7. Bg2 {[%clk 0:02:58.3]} 7... c6 {[%clk 0:02:58.7]} 8. O-O {[%clk
0:02:58.3]} 8... Re8 {[%clk 0:02:59]} 9. Qc2 {[%clk 0:02:53.4]} 9... a6 {[%clk
0:02:56.6]} 10. a4 {[%clk 0:02:46.8]} 10... a5 {[%clk 0:02:56.2]} 11. b3 {[%clk
0:02:44.6]} 11... exd4 {[%clk 0:02:50.4]} 12. Nxd4 {[%clk 0:02:44]} 12... Qb6
{[%clk 0:02:51]} 13. Rd1 {[%clk 0:02:40.6]} 13... Nc5 {[%clk 0:02:50.2]} 14. Ba3
{[%clk 0:02:34]} 14... Bf8 {[%clk 0:02:41.5]} 15. Rab1 {[%clk 0:02:30.4]} 15...
g6 {[%clk 0:02:29.9]} 16. Nde2 {[%clk 0:01:50.9]} 16... Ng4 {[%clk 0:02:23.9]}
17. Nf4 {[%clk 0:01:32.5]} 17... Ne5 {[%clk 0:02:16.1]} 18. Nce2 {[%clk
0:01:17.9]} 18... Bg4 {[%clk 0:02:12.8]} 19. h3 {[%clk 0:01:13.7]} 19... Bf3
{[%clk 0:02:09.6]} 20. Bxc5 {[%clk 0:00:54.7]} 20... Qxc5 {[%clk 0:02:05.6]} 21.
Nd3 {[%clk 0:00:54.9]} 21... Nxd3 {[%clk 0:02:04.4]} 22. Qxd3 {[%clk 0:00:55]}
22... Bxe2 {[%clk 0:01:53.3]} 23. Qxe2 {[%clk 0:00:54.4]} 23... Bg7 {[%clk
0:01:53.5]} 24. Qd3 {[%clk 0:00:52.4]} 24... Rad8 {[%clk 0:01:49.8]} 25. Rd2
{[%clk 0:00:52.3]} 25... Qb4 {[%clk 0:01:45.5]} 26. Rbd1 {[%clk 0:00:49.5]}
26... Bc3 {[%clk 0:01:39]} 27. Rc2 {[%clk 0:00:49.4]} 27... Bf6 {[%clk
0:01:37.2]} 28. h4 {[%clk 0:00:44]} 28... Rd7 {[%clk 0:01:35]} 29. Bh3 {[%clk
0:00:41.3]} 29... Rde7 {[%clk 0:01:31.8]} 30. Bg2 {[%clk 0:00:40.3]} 30... Re6
{[%clk 0:01:28.4]} 31. Re2 {[%clk 0:00:38.7]} 31... Bd8 {[%clk 0:01:24.8]} 32.
Red2 {[%clk 0:00:36.7]} 32... Bb6 {[%clk 0:01:22]} 33. g4 {[%clk 0:00:30.4]}
33... Bc5 {[%clk 0:01:18.5]} 34. Qg3 {[%clk 0:00:29.9]} 34... Qb6 {[%clk
0:01:12.4]} 35. h5 {[%clk 0:00:27.5]} 35... Qd8 {[%clk 0:01:11.9]} 36. Qf4
{[%clk 0:00:22.2]} 36... Qh4 {[%clk 0:01:07.8]} 37. Qf3 {[%clk 0:00:11.1]} 37...
Rf6 {[%clk 0:01:05.4]} 38. Qh3 {[%clk 0:00:08.4]} 38... Bxf2+ {[%clk 0:01:02]}
39. Kh2 {[%clk 0:00:08.5]} 39... Bg3+ {[%clk 0:00:54.1]} 40. Kh1 {[%clk
0:00:08.8]} 40... Qxh3+ {[%clk 0:00:51.8]} 41. Bxh3 {[%clk 0:00:09.2]} 41... Be5
{[%clk 0:00:52.4]} 42. hxg6 {[%clk 0:00:09]} 42... hxg6 {[%clk 0:00:52.1]} 43.
Rf1 {[%clk 0:00:06.9]} 43... Rxf1+ {[%clk 0:00:50.4]} 44. Bxf1 {[%clk
0:00:07.8]} 44... Kg7 {[%clk 0:00:50.5]} 45. Bg2 {[%clk 0:00:07.6]} 45... Rh8+
{[%clk 0:00:49.2]} 46. Kg1 {[%clk 0:00:07.9]} 46... Rh4 {[%clk 0:00:49.9]} 47.
Bf3 {[%clk 0:00:07.6]} 47... Rh3 {[%clk 0:00:49.6]} 48. Rd3 {[%clk 0:00:06.3]}
48... Kf6 {[%clk 0:00:48.3]} 49. Bg2 {[%clk 0:00:03.1]} 49... Rxd3 {[%clk
0:00:47.4]} 0-1

[Event "*** SCC Grand Prix: Titled Tuesday Blitz"]
[Site "Chess.com"]
[Date "2020.07.21"]
[Round "5"]
[White "ChristianAlm"]
[Black "tlomigtlis"]
[Result "1-0"]
[WhiteElo "2526"]
[BlackElo "2372"]
[TimeControl "180+1"]
[EndTime "10:55:27 PDT"]
[Termination "ChristianAlm won by checkmate"]

1. d4 {[%clk 0:03:00.9]} 1... d5 {[%clk 0:02:59.7]} 2. c4 {[%clk 0:02:56.4]}
2... c6 {[%clk 0:02:59.3]} 3. Nf3 {[%clk 0:02:55.4]} 3... Nf6 {[%clk 0:02:58.8]}
4. Nc3 {[%clk 0:02:53.7]} 4... e6 {[%clk 0:02:58.7]} 5. e3 {[%clk 0:02:46.7]}
5... a6 {[%clk 0:02:58]} 6. Bd3 {[%clk 0:02:45.6]} 6... dxc4 {[%clk 0:02:57.9]}
7. Bxc4 {[%clk 0:02:46.5]} 7... b5 {[%clk 0:02:57.9]} 8. Bd3 {[%clk 0:02:46.3]}
8... c5 {[%clk 0:02:58.1]} 9. O-O {[%clk 0:02:43.7]} 9... Nbd7 {[%clk 0:02:54]}
10. Qe2 {[%clk 0:02:35]} 10... Bb7 {[%clk 0:02:50.2]} 11. Rd1 {[%clk 0:02:33.1]}
11... Qb8 {[%clk 0:02:48]} 12. e4 {[%clk 0:02:29.9]} 12... cxd4 {[%clk
0:02:47.6]} 13. Nxd4 {[%clk 0:02:30.2]} 13... Bd6 {[%clk 0:02:47.2]} 14. g3
{[%clk 0:02:27]} 14... O-O {[%clk 0:02:44.3]} 15. f4 {[%clk 0:02:19.6]} 15... e5
{[%clk 0:02:39.8]} 16. Nf5 {[%clk 0:02:18.8]} 16... Bc5+ {[%clk 0:02:26.5]} 17.
Kh1 {[%clk 0:02:05.4]} 17... Bc6 {[%clk 0:02:08.4]} 18. a3 {[%clk 0:01:47.2]}
18... exf4 {[%clk 0:01:45.6]} 19. Bxf4 {[%clk 0:01:42.5]} 19... Qb7 {[%clk
0:01:44.4]} 20. b4 {[%clk 0:01:27]} 20... Bb6 {[%clk 0:00:41.6]} 21. Ne7+ {[%clk
0:01:19]} 21... Kh8 {[%clk 0:00:41.3]} 22. Nxc6 {[%clk 0:01:18.9]} 22... Qxc6
{[%clk 0:00:42.2]} 23. Rac1 {[%clk 0:01:18.6]} 23... Qb7 {[%clk 0:00:36.5]} 24.
Nd5 {[%clk 0:01:17.1]} 24... Nxd5 {[%clk 0:00:31.7]} 25. exd5 {[%clk 0:01:18]}
25... Qxd5+ {[%clk 0:00:27.1]} 26. Be4 {[%clk 0:01:18]} 26... Qe6 {[%clk
0:00:26.5]} 27. Qd3 {[%clk 0:01:04.9]} 27... Rad8 {[%clk 0:00:24.9]} 28. Bf5
{[%clk 0:00:55.4]} 28... Ne5 {[%clk 0:00:08.6]} 29. Qxd8 {[%clk 0:00:45.4]}
29... Rxd8 {[%clk 0:00:01.3]} 30. Bxe6 {[%clk 0:00:45.2]} 30... fxe6 {[%clk
0:00:01.3]} 31. Rxd8+ {[%clk 0:00:43]} 31... Bxd8 {[%clk 0:00:02.2]} 32. Bxe5
{[%clk 0:00:41]} 32... Kg8 {[%clk 0:00:01]} 33. Rc8 {[%clk 0:00:39.9]} 33... Kf7
{[%clk 0:00:01.9]} 34. Rxd8 {[%clk 0:00:39.7]} 34... Kg6 {[%clk 0:00:02.8]} 35.
g4 {[%clk 0:00:35.8]} 35... h5 {[%clk 0:00:02.3]} 36. h3 {[%clk 0:00:35.5]}
36... hxg4 {[%clk 0:00:02.7]} 37. hxg4 {[%clk 0:00:36.4]} 37... Kg5 {[%clk
0:00:03.6]} 38. Rd4 {[%clk 0:00:35.3]} 38... g6 {[%clk 0:00:04]} 39. Kg2 {[%clk
0:00:32.8]} 39... Kh6 {[%clk 0:00:04.9]} 40. Kg3 {[%clk 0:00:30.3]} 40... Kg5
{[%clk 0:00:05.8]} 41. Bg7 {[%clk 0:00:23.6]} 41... a5 {[%clk 0:00:03.5]} 42.
Re4 {[%clk 0:00:23.6]} 42... axb4 {[%clk 0:00:01.2]} 43. Re5# {[%clk 0:00:24.5]}
1-0

[Event "*** SCC Grand Prix: Titled Tuesday Blitz"]
[Site "Chess.com"]
[Date "2020.07.21"]
[Round "5"]
[White "Emp3rador"]
[Black "JoliyRoger"]
[Result "0-1"]
[WhiteElo "2458"]
[BlackElo "2320"]
[TimeControl "180+1"]
[EndTime "10:55:27 PDT"]
[Termination "JoliyRoger won by resignation"]

1. d4 {[%clk 0:03:00.9]} 1... Nf6 {[%clk 0:02:58.5]} 2. Nf3 {[%clk 0:02:58.5]}
2... e6 {[%clk 0:02:58.9]} 3. Bg5 {[%clk 0:02:58.1]} 3... c5 {[%clk 0:02:58.7]}
4. e3 {[%clk 0:02:54.7]} 4... b6 {[%clk 0:02:58.6]} 5. Nbd2 {[%clk 0:02:54.6]}
5... Bb7 {[%clk 0:02:58.5]} 6. c3 {[%clk 0:02:54.7]} 6... Be7 {[%clk 0:02:58.8]}
7. Bd3 {[%clk 0:02:54.6]} 7... a6 {[%clk 0:02:58.2]} 8. O-O {[%clk 0:02:53.9]}
8... O-O {[%clk 0:02:56.8]} 9. e4 {[%clk 0:02:53.7]} 9... d6 {[%clk 0:02:49.4]}
10. Qe2 {[%clk 0:02:53.3]} 10... h6 {[%clk 0:02:16.3]} 11. Bh4 {[%clk 0:02:53]}
11... Nh5 {[%clk 0:02:15.6]} 12. Bxe7 {[%clk 0:02:46.8]} 12... Qxe7 {[%clk
0:02:16]} 13. Qe3 {[%clk 0:02:47.1]} 13... Nc6 {[%clk 0:01:51.4]} 14. e5 {[%clk
0:02:43]} 14... cxd4 {[%clk 0:01:50.2]} 15. cxd4 {[%clk 0:02:43.2]} 15... dxe5
{[%clk 0:01:40.4]} 16. dxe5 {[%clk 0:02:43.4]} 16... Nb4 {[%clk 0:01:40]} 17.
Be4 {[%clk 0:02:33.7]} 17... Nd5 {[%clk 0:01:32.1]} 18. Bxd5 {[%clk 0:02:32.4]}
18... Bxd5 {[%clk 0:01:22.9]} 19. g4 {[%clk 0:02:32.1]} 19... f5 {[%clk
0:00:50.8]} 20. gxh5 {[%clk 0:02:31]} 20... Qf7 {[%clk 0:00:48.3]} 21. Qf4
{[%clk 0:02:29.5]} 21... Qxh5 {[%clk 0:00:47.5]} 22. Qh4 {[%clk 0:02:22.7]}
22... Bxf3 {[%clk 0:00:46.1]} 23. Qxh5 {[%clk 0:02:21.9]} 23... Bxh5 {[%clk
0:00:45.8]} 24. Nc4 {[%clk 0:02:22.2]} 24... b5 {[%clk 0:00:42.2]} 25. Nd6
{[%clk 0:02:21.6]} 25... Bf3 {[%clk 0:00:37.5]} 26. Rac1 {[%clk 0:02:20.2]}
26... Bd5 {[%clk 0:00:37.9]} 27. a3 {[%clk 0:02:16.9]} 27... Ra7 {[%clk
0:00:38.3]} 28. Rc5 {[%clk 0:02:14.1]} 28... f4 {[%clk 0:00:34.2]} 29. Rfc1
{[%clk 0:02:13.9]} 29... f3 {[%clk 0:00:33.1]} 30. Rc8 {[%clk 0:02:11.2]} 30...
Rxc8 {[%clk 0:00:30.3]} 31. Rxc8+ {[%clk 0:02:10.9]} 31... Kh7 {[%clk
0:00:30.6]} 32. h4 {[%clk 0:02:08.6]} 32... h5 {[%clk 0:00:29.2]} 33. Kh2 {[%clk
0:02:07.4]} 33... a5 {[%clk 0:00:29]} 34. Nxb5 {[%clk 0:02:01.8]} 34... Rb7
{[%clk 0:00:27.5]} 35. a4 {[%clk 0:01:59.6]} 35... Bb3 {[%clk 0:00:27.9]} 36.
Nd6 {[%clk 0:01:45.2]} 36... Rb4 {[%clk 0:00:28.2]} 37. Kg3 {[%clk 0:01:45.3]}
37... Rg4+ {[%clk 0:00:27.2]} 38. Kxf3 {[%clk 0:01:44.7]} 38... Rxh4 {[%clk
0:00:27.5]} 39. Rc5 {[%clk 0:01:37.8]} 39... Rxa4 {[%clk 0:00:26.6]} 40. Kg3
{[%clk 0:01:38.3]} 40... Bd5 {[%clk 0:00:24.8]} 41. Rc7 {[%clk 0:01:33.5]} 41...
Rb4 {[%clk 0:00:23.9]} 42. Ne8 {[%clk 0:01:32.9]} 42... Rg4+ {[%clk 0:00:23]}
43. Kh3 {[%clk 0:01:32.4]} 43... Kh6 {[%clk 0:00:23]} 44. Ra7 {[%clk 0:01:27.3]}
44... a4 {[%clk 0:00:21.9]} 45. f4 {[%clk 0:01:20.9]} 45... Bg2+ {[%clk
0:00:20.6]} 46. Kh2 {[%clk 0:01:20.9]} 46... Bc6 {[%clk 0:00:21.1]} 47. Nd6
{[%clk 0:01:18]} 47... Rg2+ {[%clk 0:00:21.5]} 48. Kh3 {[%clk 0:01:17.9]} 48...
Rxb2 {[%clk 0:00:21.8]} 49. Rc7 {[%clk 0:01:06.7]} 49... Bd5 {[%clk 0:00:16.6]}
50. Ra7 {[%clk 0:01:04.2]} 50... Rb3+ {[%clk 0:00:15.5]} 51. Kh2 {[%clk
0:01:04.2]} 51... a3 {[%clk 0:00:16]} 52. Ne8 {[%clk 0:01:02.5]} 52... Rb2+
{[%clk 0:00:16]} 53. Kg3 {[%clk 0:01:01.8]} 53... a2 {[%clk 0:00:16.3]} 54. Nxg7
{[%clk 0:01:01.1]} 54... Rg2+ {[%clk 0:00:16.8]} 55. Kh4 {[%clk 0:01:00.5]}
55... Rxg7 {[%clk 0:00:17.3]} 56. f5 {[%clk 0:01:00.9]} 56... Rg4+ {[%clk
0:00:16.8]} 57. Kh3 {[%clk 0:01:01.1]} 57... exf5 {[%clk 0:00:16.8]} 58. Ra6+
{[%clk 0:01:00.8]} 58... Kg5 {[%clk 0:00:16.6]} 59. e6 {[%clk 0:01:00.2]} 59...
Re4 {[%clk 0:00:17.1]} 60. e7 {[%clk 0:01:00.5]} 60... Rxe7 {[%clk 0:00:17.4]}
0-1

[Event "*** SCC Grand Prix: Titled Tuesday Blitz"]
[Site "Chess.com"]
[Date "2020.07.21"]
[Round "5"]
[White "Zurability"]
[Black "giantslayer83"]
[Result "0-1"]
[WhiteElo "2576"]
[BlackElo "2737"]
[TimeControl "180+1"]
[EndTime "10:55:29 PDT"]
[Termination "giantslayer83 won on time"]

1. Nf3 {[%clk 0:02:57.2]} 1... d5 {[%clk 0:02:59.7]} 2. g3 {[%clk 0:02:57]} 2...
g6 {[%clk 0:02:59.5]} 3. Bg2 {[%clk 0:02:57.3]} 3... Bg7 {[%clk 0:02:59.9]} 4.
O-O {[%clk 0:02:57.8]} 4... e5 {[%clk 0:02:59.9]} 5. c4 {[%clk 0:02:56.4]} 5...
Ne7 {[%clk 0:02:58.6]} 6. cxd5 {[%clk 0:02:56]} 6... Nxd5 {[%clk 0:02:59.5]} 7.
Nc3 {[%clk 0:02:55.4]} 7... Ne7 {[%clk 0:02:57.2]} 8. d3 {[%clk 0:02:32]} 8...
Nbc6 {[%clk 0:02:54.5]} 9. Bd2 {[%clk 0:02:30.4]} 9... O-O {[%clk 0:02:54]} 10.
Rb1 {[%clk 0:02:29.5]} 10... Re8 {[%clk 0:02:49.8]} 11. b4 {[%clk 0:02:29.3]}
11... Nd4 {[%clk 0:02:47.4]} 12. Ne4 {[%clk 0:02:14.7]} 12... Bg4 {[%clk
0:02:44.4]} 13. Nxd4 {[%clk 0:02:13.5]} 13... exd4 {[%clk 0:02:43.8]} 14. Bg5
{[%clk 0:01:43.6]} 14... h6 {[%clk 0:02:36.5]} 15. Bxh6 {[%clk 0:01:29]} 15...
Nd5 {[%clk 0:02:32.4]} 16. Bxg7 {[%clk 0:01:24.9]} 16... Kxg7 {[%clk 0:02:33.3]}
17. h3 {[%clk 0:01:24.9]} 17... Rxe4 {[%clk 0:02:24.5]} 18. dxe4 {[%clk
0:00:45]} 18... Nc3 {[%clk 0:02:23.5]} 19. Qd2 {[%clk 0:00:37]} 19... Bxe2
{[%clk 0:02:04.3]} 20. a3 {[%clk 0:00:13.8]} 20... Bxf1 {[%clk 0:01:54]} 21.
Rxf1 {[%clk 0:00:14.7]} 21... a5 {[%clk 0:01:54.1]} 22. e5 {[%clk 0:00:13.5]}
22... axb4 {[%clk 0:01:54.2]} 23. axb4 {[%clk 0:00:14.4]} 23... Ra2 {[%clk
0:01:54.8]} 24. Qd3 {[%clk 0:00:14.9]} 24... c6 {[%clk 0:01:51.6]} 25. Re1
{[%clk 0:00:14.9]} 25... Qe7 {[%clk 0:01:49.9]} 26. e6 {[%clk 0:00:12.7]} 26...
f6 {[%clk 0:01:42.6]} 27. Bf3 {[%clk 0:00:10.7]} 27... Nb5 {[%clk 0:01:32.9]}
28. Re4 {[%clk 0:00:10]} 28... Ra3 {[%clk 0:01:29]} 29. Qd1 {[%clk 0:00:02.1]}
29... Nc3 {[%clk 0:01:28.8]} 30. Qc1 {[%clk 0:00:02]} 30... Nxe4 {[%clk
0:01:25.1]} 31. Qxa3 {[%clk 0:00:02.5]} 31... Qxe6 {[%clk 0:01:25.5]} 32. Qd3
{[%clk 0:00:03.1]} 32... Ng5 {[%clk 0:01:23.9]} 33. Bg4 {[%clk 0:00:02.5]} 33...
Qe1+ {[%clk 0:01:22.7]} 34. Kg2 {[%clk 0:00:02.4]} 34... Qxb4 {[%clk 0:01:21]}
35. h4 {[%clk 0:00:02.1]} 35... Nf7 {[%clk 0:01:20.6]} 36. h5 {[%clk 0:00:02.7]}
36... Ne5 {[%clk 0:01:20.8]} 37. Qe4 {[%clk 0:00:03.3]} 37... gxh5 {[%clk
0:01:17.7]} 38. Bxh5 {[%clk 0:00:03.4]} 38... Qd6 {[%clk 0:01:17.7]} 39. Be8
{[%clk 0:00:02.4]} 39... d3 {[%clk 0:01:15.4]} 40. f4 {[%clk 0:00:03]} 40... Nf7
{[%clk 0:01:05.6]} 41. Qf3 {[%clk 0:00:02.6]} 41... d2 {[%clk 0:01:04.8]} 42.
Qh5 {[%clk 0:00:03.1]} 42... Qe6 {[%clk 0:00:56.6]} 43. Bxf7 {[%clk 0:00:02.3]}
43... Qxf7 {[%clk 0:00:56.8]} 44. Qg4+ {[%clk 0:00:02.5]} 44... Kf8 {[%clk
0:00:53.9]} 45. Qc8+ {[%clk 0:00:02]} 45... Qe8 {[%clk 0:00:54.2]} 46. Qg4
{[%clk 0:00:02.5]} 46... Qe4+ {[%clk 0:00:52.4]} 47. Kh2 {[%clk 0:00:02.2]}
47... Qc2 {[%clk 0:00:50.3]} 48. Qc8+ {[%clk 0:00:02.2]} 48... Ke7 {[%clk
0:00:49.4]} 49. Qc7+ {[%clk 0:00:02.8]} 49... Ke6 {[%clk 0:00:49.2]} 50. f5+
{[%clk 0:00:02.8]} 50... Kd5 {[%clk 0:00:48.2]} 51. Qd7+ {[%clk 0:00:02.1]}
51... Kc4 {[%clk 0:00:48]} 0-1

[Event "*** SCC Grand Prix: Titled Tuesday Blitz"]
[Site "Chess.com"]
[Date "2020.07.21"]
[Round "5"]
[White "KuzubovYuriy"]
[Black "Paladin61"]
[Result "1-0"]
[WhiteElo "2830"]
[BlackElo "2620"]
[TimeControl "180+1"]
[EndTime "10:55:30 PDT"]
[Termination "KuzubovYuriy won by checkmate"]

1. d4 {[%clk 0:03:00.9]} 1... Nf6 {[%clk 0:02:59.6]} 2. c4 {[%clk 0:03:00.7]}
2... g6 {[%clk 0:02:59.9]} 3. Nc3 {[%clk 0:03:00]} 3... Bg7 {[%clk 0:03:00.6]}
4. e4 {[%clk 0:02:59.7]} 4... d6 {[%clk 0:03:01.1]} 5. Be2 {[%clk 0:03:00.1]}
5... O-O {[%clk 0:03:01.4]} 6. Bg5 {[%clk 0:03:00.7]} 6... Na6 {[%clk
0:03:01.9]} 7. f4 {[%clk 0:03:00.7]} 7... c6 {[%clk 0:03:00]} 8. Nf3 {[%clk
0:03:00.2]} 8... Nc7 {[%clk 0:02:58.5]} 9. Qd2 {[%clk 0:02:50.9]} 9... b5 {[%clk
0:02:25.3]} 10. cxb5 {[%clk 0:02:46]} 10... cxb5 {[%clk 0:02:24.5]} 11. a3
{[%clk 0:02:34.3]} 11... a6 {[%clk 0:02:12.4]} 12. O-O {[%clk 0:02:27]} 12...
Bb7 {[%clk 0:02:07.4]} 13. d5 {[%clk 0:02:23.9]} 13... Qd7 {[%clk 0:02:04.7]}
14. Rad1 {[%clk 0:02:17.5]} 14... Rac8 {[%clk 0:01:57.3]} 15. Kh1 {[%clk
0:02:03.4]} 15... Rfd8 {[%clk 0:01:16.1]} 16. f5 {[%clk 0:01:54.1]} 16... Na8
{[%clk 0:00:53]} 17. Qe3 {[%clk 0:01:28.2]} 17... Rf8 {[%clk 0:00:45.9]} 18. h3
{[%clk 0:01:21]} 18... Qc7 {[%clk 0:00:43]} 19. Bh6 {[%clk 0:01:12.2]} 19... Qb6
{[%clk 0:00:40.1]} 20. Qg5 {[%clk 0:01:11]} 20... b4 {[%clk 0:00:27.5]} 21. axb4
{[%clk 0:01:10.1]} 21... Qxb4 {[%clk 0:00:27.9]} 22. Qh4 {[%clk 0:00:45.8]}
22... Qxb2 {[%clk 0:00:12.6]} 23. Na4 {[%clk 0:00:35.7]} 23... Qxe2 {[%clk
0:00:09.6]} 24. Rde1 {[%clk 0:00:26.6]} 24... Qc2 {[%clk 0:00:09]} 25. Ng5
{[%clk 0:00:24.6]} 25... Nh5 {[%clk 0:00:05.8]} 26. Bxg7 {[%clk 0:00:23.2]}
26... Kxg7 {[%clk 0:00:06.1]} 27. g4 {[%clk 0:00:21.4]} 27... h6 {[%clk
0:00:05.6]} 28. gxh5 {[%clk 0:00:19.5]} 28... hxg5 {[%clk 0:00:05.7]} 29. Qxg5
{[%clk 0:00:19.2]} 29... Rh8 {[%clk 0:00:04.5]} 30. Rg1 {[%clk 0:00:16.3]} 30...
Qxa4 {[%clk 0:00:02.5]} 31. Qxe7 {[%clk 0:00:15.1]} 31... Rce8 {[%clk
0:00:02.4]} 32. Rxg6+ {[%clk 0:00:14.7]} 32... Kh7 {[%clk 0:00:02.3]} 33. Qxf7#
{[%clk 0:00:15.2]} 1-0

[Event "*** SCC Grand Prix: Titled Tuesday Blitz"]
[Site "Chess.com"]
[Date "2020.07.21"]
[Round "5"]
[White "qingaunlee"]
[Black "VladaSviridova"]
[Result "1-0"]
[WhiteElo "2344"]
[BlackElo "2128"]
[TimeControl "180+1"]
[EndTime "10:55:30 PDT"]
[Termination "qingaunlee won by checkmate"]

1. e4 {[%clk 0:03:00.9]} 1... e6 {[%clk 0:03:00]} 2. d4 {[%clk 0:03:00.6]} 2...
d5 {[%clk 0:03:00.2]} 3. Nd2 {[%clk 0:03:01.5]} 3... c5 {[%clk 0:02:59.9]} 4.
exd5 {[%clk 0:03:01.5]} 4... Qxd5 {[%clk 0:02:59.6]} 5. Ngf3 {[%clk 0:03:02.1]}
5... cxd4 {[%clk 0:02:59.2]} 6. Bc4 {[%clk 0:03:02.7]} 6... Qd7 {[%clk
0:02:59.4]} 7. O-O {[%clk 0:03:03.6]} 7... Nc6 {[%clk 0:02:59.6]} 8. Nb3 {[%clk
0:03:03.2]} 8... a6 {[%clk 0:02:59.1]} 9. Nbxd4 {[%clk 0:03:02.7]} 9... Nxd4
{[%clk 0:02:59.3]} 10. Nxd4 {[%clk 0:03:03.4]} 10... Qc7 {[%clk 0:02:59.7]} 11.
Bb3 {[%clk 0:03:03.1]} 11... Bd6 {[%clk 0:02:59.8]} 12. h3 {[%clk 0:03:02.8]}
12... Ne7 {[%clk 0:02:59.8]} 13. Re1 {[%clk 0:03:00.5]} 13... O-O {[%clk
0:02:58.6]} 14. c3 {[%clk 0:02:59.4]} 14... b6 {[%clk 0:02:52.6]} 15. Bg5 {[%clk
0:02:47]} 15... Ng6 {[%clk 0:02:30.6]} 16. Bc2 {[%clk 0:02:25.3]} 16... Bb7
{[%clk 0:02:27.4]} 17. Bxg6 {[%clk 0:02:20.7]} 17... hxg6 {[%clk 0:02:25.2]} 18.
Qd3 {[%clk 0:02:18.5]} 18... Rad8 {[%clk 0:02:14.8]} 19. Rad1 {[%clk 0:02:14.4]}
19... e5 {[%clk 0:01:58.8]} 20. Bxd8 {[%clk 0:02:12.8]} 20... Rxd8 {[%clk
0:01:52.5]} 21. Nc2 {[%clk 0:02:05.6]} 21... e4 {[%clk 0:01:50.6]} 22. Qe2
{[%clk 0:02:02.2]} 22... Bc5 {[%clk 0:01:33.1]} 23. Rxd8+ {[%clk 0:01:55.7]}
23... Qxd8 {[%clk 0:01:27.2]} 24. Rd1 {[%clk 0:01:52.8]} 24... Qg5 {[%clk
0:01:23.5]} 25. Ne3 {[%clk 0:01:52.7]} 25... Kh7 {[%clk 0:01:14.6]} 26. Rd7
{[%clk 0:01:50.1]} 26... Bc8 {[%clk 0:01:14]} 27. Rd5 {[%clk 0:01:32.6]} 27...
Qe7 {[%clk 0:01:10.9]} 28. b4 {[%clk 0:01:27.5]} 28... Bd6 {[%clk 0:01:03.2]}
29. Nc4 {[%clk 0:01:17.2]} 29... Bc7 {[%clk 0:01:03.1]} 30. Rd4 {[%clk
0:01:13.2]} 30... Bf5 {[%clk 0:00:50.6]} 31. g4 {[%clk 0:01:09.9]} 31... Be6
{[%clk 0:00:50.4]} 32. Rxe4 {[%clk 0:01:09.1]} 32... Qh4 {[%clk 0:00:47.7]} 33.
Qd3 {[%clk 0:00:55.8]} 33... b5 {[%clk 0:00:38.9]} 34. Ne5 {[%clk 0:00:53.8]}
34... Qf6 {[%clk 0:00:34.8]} 35. Nf3 {[%clk 0:00:48.9]} 35... Bc4 {[%clk
0:00:33.5]} 36. Qe3 {[%clk 0:00:47.6]} 36... Bb6 {[%clk 0:00:31.5]} 37. Ng5+
{[%clk 0:00:44.7]} 37... Kh6 {[%clk 0:00:27.5]} 38. Nxf7+ {[%clk 0:00:44.2]}
38... Kh7 {[%clk 0:00:26.3]} 39. Ng5+ {[%clk 0:00:40.2]} 39... Kh6 {[%clk
0:00:26.5]} 40. Nf7+ {[%clk 0:00:13.7]} 40... Kh7 {[%clk 0:00:26.7]} 41. Re8
{[%clk 0:00:13.2]} 41... g5 {[%clk 0:00:16.3]} 42. Qe4+ {[%clk 0:00:10.9]} 42...
Qg6 {[%clk 0:00:14.9]} 43. Rh8# {[%clk 0:00:10.7]} 1-0